Cogmind - Beta 14 @@@ ROGUE MODE // 2024.09.30 @ 00:20:46 Player: Cherman0 Result: Destroyed by BD-QTD(R) with Subdweller Machine Gun Performance ------------- Evolutions (0) 0 Regions Visited (3) 600 Robots Destroyed (47) 235 Value Destroyed (875) 875 Prototype IDs (11) 220 Alien Tech Used (0) 0 Bonus (24) 24 TOTAL SCORE: 1954 Bonus ------- Follower Combat Kills 162 Friendly Fire -138 Cogmind --------- Core Integrity 0/250 Matter 247/300 Energy 160/160 System Corruption 2% Temperature Cool (0) Movement Treading (160) Location -10/Subcaves Parts ------- > --- POWER (1) -------- Light Nuclear Core > --- PROPULSION (2) --- Spiked Treads Spiked Treads > --- UTILITY (2) ------ Large Storage Unit Light Armor Plating > --- WEAPON (2) ------- Light Cannon Battle Cannon > --- INVENTORY (15) --- Ion Engine Light Treads Light Treads Light Treads High-capacity Matter Pod (200) High-capacity Matter Pod (200) High-capacity Matter Pod (200) Seismic Detector Scrap Shield Hacking Suite Subdweller Machine Gun Light Cannon Light Cannon Grenade Launcher Peak State ------------ > --- POWER ------------ Light Nuclear Core > --- PROPULSION ------- Light Treads Spiked Treads > --- UTILITY ---------- Large Storage Unit Power Bank > --- WEAPON ----------- Light Cannon Light Cannon > --- INVENTORY -------- Ion Engine Light Treads Light Treads Light Treads High-capacity Matter Pod High-capacity Matter Pod High-capacity Matter Pod Sensor Array Seismic Detector Light Armor Plating Hacking Suite Subdweller Machine Gun Light Cannon Light Cannon Grenade Launcher [Rating: 19] Favorites ----------- Power Ion Engine Engine Ion Engine Power Core Light Nuclear Core Propulsion Light Treads Treads Light Treads Leg Aluminum Leg Utility Large Storage Unit Device Seismic Detector Storage Large Storage Unit Protection Light Armor Plating Weapon Assault Rifle Energy Gun Medium Laser Ballistic Gun Assault Rifle Ballistic Cannon Light Cannon Launcher Grenade Launcher Build | -11 -10 -10 -10 ------- Run | Yrd Mat Min Sub Slots Evolved . | . . . . Power . | . . . . Propulsion . | . . . . Utility . | . . . . Weapon . | . . . . Parts Attached 39 | 4 13 6 16 Power 1 | . . 1 . Engine . | . . . . Core 1 | . . 1 . Reactor . | . . . . Propulsion 6 | 2 . . 4 Treads 6 | 2 . . 4 Leg . | . . . . Wheel . | . . . . Hover . | . . . . Flight . | . . . . Utility 12 | 1 1 3 7 Device 5 | 1 . 1 3 Storage 1 | . 1 . . Processor . | . . . . Hackware . | . . . . Protection 6 | . . 2 4 Artifact . | . . . . Weapon 20 | 1 12 2 5 Energy Gun 1 | . 1 . . Energy Cannon . | . . . . Ballistic Gun 8 | 1 6 . 1 Ballistic Cannon 6 | . 1 2 3 Launcher 5 | . 4 . 1 Special Weapon . | . . . . Impact Weapon . | . . . . Slashing Weapon . | . . . . Piercing Weapon . | . . . . Special Melee Weapon . | . . . . Unidentified Prototypes . | . . . . Parts Lost 1 | . . . 1 Power . | . . . . Propulsion . | . . . . Utility 1 | . . . 1 Weapon . | . . . . Highest Loss Streak 1 | . . . 1 To Critical Strikes . | . . . . Average Slot Usage (%) 99 | . 100 100 99 Engine 7 | . 14 2 . Core 6 | . . 11 13 Treads 27 | . 28 28 27 Device 6 | . 14 . 1 Storage 13 | . 14 14 13 Protection 7 | . . 13 12 Energy Gun 1 | . 2 . . Ballistic Gun 17 | . 25 18 . Ballistic Cannon 8 | . . 9 27 Peak Build Rating 19 | 7 8 10 19 Average Rating 9 | 6 7 9 11 On Entrance 7 | 6 7 8 10 Naked Turns . | . . . . Heaviest Build 34 | 15 31 34 34 Greatest Support 40 | 40 40 40 40 Greatest Overweight (x) . | . . . . Average Overweight (x) . | . . . . Largest Inventory Capacity 15 | 8 15 15 15 Average Capacity 13 | 8 11 15 15 Most Carried 15 | 7 15 15 15 Average Carried 12 | 6 10 14 14 Final Capacity 15 | 8 15 15 15 Final Carried 15 | 6 15 15 15 Class Distribution -------------------- 97% | Mutant Dominant Class ---------------- Mutant | -10/Materials Mutant | -10/Mines Mutant | -10/Subcaves Resources | -11 -10 -10 -10 ----------- Run | Yrd Mat Min Sub Matter Collected 1939 | 249 970 346 374 Remotely . | . . . . Salvage Created 1103 | 24 589 302 188 Parts 90 | 3 44 31 12 Haulers Intercepted 2 | . 2 . . Recyclers Shooed 5 | . 4 1 . Parts Field Recycled . | . . . . Retrieved Matter . | . . . . Parts Self-Destructed 16 | . . . 16 Prevented . | . . . . Kills | -11 -10 -10 -10 ------- Run | Yrd Mat Min Sub Combat Hostiles Destroyed 33 | . 13 12 8 Guns 19 | . 8 11 . Cannons 6 | . . 1 5 AOE 7 | . 5 . 2 Classes Destroyed 11 | 1 9 . 1 Worker 1 | . 1 . . Builder 1 | . 1 . . Tunneler 2 | 1 1 . . Hauler 2 | . 2 . . Recycler 2 | . 2 . . Mechanic 1 | . 1 . . Operator 1 | . 1 . . Watcher 3 | . 3 . . Swarmer 18 | . 9 9 . Grunt 10 | . 4 4 2 Subdweller 6 | . . . 6 Best Kill Streak 5 | 1 5 3 2 Combat Bots Only 3 | . 3 3 2 Max Kills in Single Turn 2 | 1 2 2 2 Gunslinging 1 | . . 1 . Exploded 2 | . 2 . 2 Melee . | . . . . Uniques/NPCs Destroyed . | . . . . Combat | -11 -10 -10 -10 -------- Run | Yrd Mat Min Sub Hostile Shots Fired 111 | . 30 36 45 Missed 29 | . 8 12 9 Damage Taken 1200 | . 206 253 741 Core 265 | . 46 39 180 Absorbed by Shields . | . . . . Core Remaining (%) 100 | 100 . . . Volleys Fired 117 | 3 58 25 31 Largest 2 | 2 2 2 2 Hottest 74 | 70 70 70 74 Shots Fired 221 | 6 109 50 56 Gun 156 | 6 101 45 4 Cannon 56 | . 1 5 50 Launcher 9 | . 7 . 2 Special . | . . . . Kinetic 198 | 3 91 50 54 Thermal 14 | 3 11 . . Explosive 9 | . 7 . 2 Electromagnetic . | . . . . Robot Hit Streak 11 | 1 11 7 7 Robot Miss Streak 3 | 1 3 2 3 Penetration Max . | . . . . Secondary Targets 2 | . 1 1 . Max Gunslinging Chain 1 | . 1 1 . Shots Hit Robots 137 | 3 65 33 36 Core Hits 67 | 1 33 21 12 Critical Kills . | . . . . Critical Parts Destroyed . | . . . . Critical Strikes 4 | . 1 1 2 Burn 1 | . 1 . . Blast 3 | . . 1 2 Melee Attacks . | . . . . Impact . | . . . . Slashing . | . . . . Piercing . | . . . . Sneak Attacks . | . . . . Combat Hostiles . | . . . . Follow-up Attacks . | . . . . Damage Inflicted 2543 | 51 1182 548 762 Guns 1358 | 51 865 442 . Cannons 640 | . . 62 578 Explosions 496 | . 312 . 184 Melee . | . . . . Ramming 49 | . 5 44 . Kinetic 1872 | 13 777 504 578 Thermal 126 | 38 88 . . Explosive 496 | . 312 . 184 Electromagnetic . | . . . . Impact . | . . . . Slashing . | . . . . Piercing . | . . . . Highest Corruption 2 | . 2 2 2 Average Corruption 2 | . 2 2 2 Corruption Purged . | . . . . Corruption Blocked . | . . . . Effects 47 | . 12 24 11 Message Errors 17 | . 5 8 4 Matter Fused 12 | . 2 6 4 Heat Flow Errors 2 | . 2 . . Energy Discharges 6 | . 1 4 1 Parts Fused 1 | . . 1 . Data Loss (minor) 2 | . . . 2 Data Loss (major) 2 | . 1 1 . Misfires 3 | . 1 2 . Weapon Failures 2 | . . 2 . Overload Shots . | . . . . Overflow Damage 35 | . 31 4 . Projectiles 4 | . . 4 . Explosions 31 | . 31 . . Melee . | . . . . Knockbacks 11 | . . 1 10 Impact 1 | . . 1 . Kinetic 10 | . . . 10 Secondary . | . . . . Self-Inflicted Damage 10 | . 10 . . Shots 1 | . 1 . . Rammed 11 | . 3 8 . Targets Rammed 11 | . 3 8 . Kicked . | . . . . Crushed . | . . . . Highest Temperature 198 | 27 198 48 15 Average Temperature 33 | 14 48 11 9 Received Heat Transfer 231 | . 36 81 114 Siege Activations . | . . . . Robots Corrupted . | . . . . Combat Hostiles . | . . . . Parts Fried . | . . . . Impact Corruptions . | . . . . Robots Melted . | . . . . Combat Hostiles . | . . . . Parts Melted 2 | 1 1 . . Heat Transferred 444 | 111 333 . . Parts Sabotaged . | . . . . Parts Stolen . | . . . . Parts Stripped . | . . . . Power Chain Reactions . | . . . . Alert | -11 -10 -10 -10 ------- Run | Yrd Mat Min Sub Peak Influence 303 | 5 256 303 . Initial 14 | . 3 14 . Average 129 | 3 107 158 . Maximum Alert Level 1 | . 1 1 . Low Security (%) 80 | 100 88 70 . Level 1 19 | . 11 29 . Level 2 . | . . . . Level 3 . | . . . . Level 4 . | . . . . Level 5 . | . . . . High Security . | . . . . Max Security . | . . . . Squads Dispatched 3 | . 3 . . Investigation 2 | . 2 . . Extermination . | . . . . Reinforcement 1 | . 1 . . Assault . | . . . . Garrison . | . . . . Intercept . | . . . . Searches Triggered . | . . . . Construction Impeded . | . . . . Haulers Reinforced . | . . . . Active Scanning Responses . | . . . . Cargo Convoy Interrupts . | . . . . Stealth | -11 -10 -10 -10 --------- Run | Yrd Mat Min Sub Distress Signals . | . . . . Communications Jammed . | . . . . Distress Signals . | . . . . Times Spotted 57 | . 23 23 11 Peak Tracking Total 5 | . 4 5 3 Tactical Retreats 6 | . 1 4 1 Traps | -11 -10 -10 -10 ------- Run | Yrd Mat Min Sub Traps Triggered 2 | . 2 . . Indirectly . | . . . . Trap Hack Attempts . | . . . . Triggered . | . . . . Disarmed . | . . . . Reprogrammed . | . . . . Reused . | . . . . Traps Extracted . | . . . . Installed . | . . . . Triggered 3 | . . . 3 Machines | -11 -10 -10 -10 ---------- Run | Yrd Mat Min Sub Machines Disabled 2 | . 1 . 1 Max in Single Turn 1 | . 1 . 1 Machines Repaired . | . . . . Machines Dismantled . | . . . . Machines Sabotaged . | . . . . Overloaded Fab Kills . | . . . . Hacking | -11 -10 -10 -10 --------- Run | Yrd Mat Min Sub Machines Accessed 10 | . 9 . 1 Terminals 7 | . 7 . . Fabricators . | . . . . Repair Stations . | . . . . Recycling Units 2 | . 2 . . Scanalyzers . | . . . . Garrison Access . | . . . . Total Hacks 31 | . 30 . 1 Successful 20 | . 19 . 1 Failed 11 | . 11 . . Catastrophic . | . . . . Database Lockouts . | . . . . Manual 27 | . 27 . . Terminals 27 | . 27 . . Fabricators . | . . . . Repair Stations . | . . . . Recycling Units 3 | . 3 . . Scanalyzers . | . . . . Garrison Access . | . . . . Terminal Hacks 9 | . 8 . 1 Robot Analysis 6 | . 6 . . Terminal Index 1 | . 1 . . Locate Traps 1 | . 1 . . Derelict Proto ID Bank 1 | . . . 1 Fabricator Hacks . | . . . . Repair Station Hacks . | . . . . Recycling Unit Hacks . | . . . . Scanalyzer . | . . . . Garrison Access Hacks . | . . . . Unauthorized Hacks 11 | . 11 . . Terminals 8 | . 8 . . Assimilate 1 | . 1 . . Botnet 1 | . 1 . . Operators 1 | . 1 . . Skim 5 | . 5 . . Fabricators . | . . . . Repair Stations . | . . . . Recycling Units 3 | . 3 . . Mask 1 | . 1 . . Tunnel 2 | . 2 . . Scanalyzers . | . . . . Garrison Access . | . . . . Data Cores Recovered . | . . . . Used . | . . . . Hacking Detections 7 | . 7 . . Full Trace Events . | . . . . Feedback Events . | . . . . Feedback Blocked . | . . . . Robot Schematics Acquired . | . . . . Robots Built . | . . . . Authchips . | . . . . Time . | . . . . Total Robot Build Rating . | . . . . Part Schematics Acquired . | . . . . Parts Built . | . . . . Authchips . | . . . . Time . | . . . . Total Part Build Rating . | . . . . Parts Repaired . | . . . . Time . | . . . . Parts Recycled . | . . . . Recycled Matter . | . . . . Retrieved Matter . | . . . . Retrieved Components . | . . . . Parts Scanalyzed . | . . . . Part Schematics Acquired . | . . . . Parts Damaged . | . . . . Bothacking | -11 -10 -10 -10 ------------ Run | Yrd Mat Min Sub Used RIF Installer . | . . . . Robots Hacked . | . . . . Non-combat . | . . . . Combat . | . . . . Robot Hacks Applied . | . . . . Relay Couplers Released . | . . . . Fabnet Peak Effective % . | . . . . Robots Rewired . | . . . . Allies Hacked . | . . . . Hacks Repelled . | . . . . Allies | -11 -10 -10 -10 -------- Run | Yrd Mat Min Sub Total Allies 6 | . 1 5 . Largest Group 4 | . 1 4 1 Highest-Rated Group 71 | . 10 71 8 Highest-Rated Ally 31 | . 10 31 8 Total Orders . | . . . . Ally Attacks 41 | . . 40 1 Total Damage 493 | . . 493 . Kills 10 | . . 10 . Allies Corrupted . | . . . . Allies Melted . | . . . . Intel | -11 -10 -10 -10 ------- Run | Yrd Mat Min Sub Robot Analysis Total 6 | . 6 . . Derelict Logs Recovered 3 | . . 2 1 Drone Launches . | . . . . Drone Recoveries . | . . . . Exploration | -11 -10 -10 -10 ------------- Run | Yrd Mat Min Sub Turns Passed 4147 | 41 1805 1503 798 Spaces Moved 2267 | 17 967 872 411 Core . | . . . . Treads 2267 | 17 967 872 411 Legs . | . . . . Wheels . | . . . . Hover . | . . . . Flight . | . . . . Fastest Speed 160 | 160 160 160 160 Average Speed 160 | 160 160 160 160 Slowest Speed 160 | 160 160 160 160 Overloaded Moves . | . . . . Propulsion Burnouts . | . . . . Robots Hopped . | . . . . Cave-ins Triggered . | . . . . Exploration Rate (%) 57 | 3 99 100 29 Regions Visited 3 Branch Regions 2 Pre-discovered Areas 2 | . 2 . . Known Exits Taken 2 | . 1 1 . Unknown Exits Taken 1 | 1 . . . Scrap Searched 7 | . . 1 6 Spaces Dug 26 | . 26 . . Terrain Destroyed 61 | . 54 . 7 Melee . | . . . . Projectile 1 | . . . 1 AOE 60 | . 54 . 6 Terrain Rammed . | . . . . Walls Destroyed . | . . . . Machines Disabled . | . . . . Actions | -11 -10 -10 -10 --------- Run | Yrd Mat Min Sub Total 2558 | 24 1114 924 496 Wait 86 | . 48 10 28 Move 2264 | 16 966 871 411 Hop . | . . . . Pick Up 21 | . 17 2 2 Fast Attach 4 | 1 1 . 2 Attach 2 | 1 . . 1 Detach 2 | 1 . . 1 Swap 33 | 2 12 6 13 Drop 18 | . 9 2 7 Fire 117 | 3 58 25 31 Melee . | . . . . Ram . | . . . . Kick . | . . . . Crush 11 | . 3 8 . Escape Stasis . | . . . . Rewire . | . . . . Trap . | . . . . Miscellaneous . | . . . . Route ------- -11/Scrapyard -10/Materials (discovered 6 exits: *Mat x3 / *Min x2 / *Sub) -10/Mines (discovered 3 exits: *Mat x2 / *Sub) -10/Subcaves History --------- Turn | Location | Event 15 | -11/Scrapyard | Discovered new exit (range 3) 42 | -11/Scrapyard | Entered Materials 281 | -10/Materials | Discovered new exit (range 16) 316 | -10/Materials | Build established: Mutant 404 | -10/Materials | Discovered new exit (range 12) 702 | -10/Materials | Discovered new exit (range 13) 750 | -10/Materials | Learned location of 1 exit from Storage 812 | -10/Materials | Identified exit to Materials 812 | -10/Materials | Identified exit to Subcaves 865 | -10/Materials | Identified exit to Mines 908 | -10/Materials | Learned 2 Materials zone layouts 981 | -10/Materials | Learned Recycling recycling unit intel 1032 | -10/Materials | Learned location of 1 exit from Recycling 1847 | -10/Materials | Entered Mines 1847 | -10/Mines | Accompanied by 1 ally 1856 | -10/Mines | Met a Derelict bent on vengeance 1877 | -10/Mines | Learned location of 1 exit from Materials 2030 | -10/Mines | Learned Materials stockpile data 2104 | -10/Mines | Escorted by a lone wolf Derelict 2157 | -10/Mines | Discovered exit to Materials (range 8) 2309 | -10/Mines | Assisted by bots powering up and referring to "LRC-V3" 2574 | -10/Mines | Lost 3 allies 2687 | -10/Mines | Received a Mining Laser from a helpful Derelict 2840 | -10/Mines | Discovered exit to Materials (range 5) 3333 | -10/Mines | Discovered exit to Subcaves (range 9) 3350 | -10/Mines | Entered Subcaves 3350 | -10/Subcaves | Accompanied by 1 ally 3382 | -10/Subcaves | Shifting Twisted Machinery released Spk. Treads 3382 | -10/Subcaves | Shifting Twisted Machinery released Flamer 3436 | -10/Subcaves | Core integrity fell below 50% 3690 | -10/Subcaves | Learned 4 Materials zone layouts 3706 | -10/Subcaves | Visited 4L-MR0's lab 3737 | -10/Subcaves | Found Power Bank 3738 | -10/Subcaves | Attached Power Bank, gained temporary slots: Power x3 4094 | -10/Subcaves | Core integrity fell below 20% 4140 | -10/Subcaves | A Subdweller sparked back to life 4140 | -10/Subcaves | A Subdweller sparked back to life 4148 | -10/Subcaves | Destroyed by BD-QTD(R) with Subdweller Machine Gun Last Messages --------------- 03967_ Found 36 Matter. 03973_ Dropped Lgt. Cannon. 03975_ Acquired 10 matter. 04001_ Lgt. Armor Plating destroyed. 04014_ HO-CRS(R) destroyed. 04014_ HA-Q8J(R) destroyed. 04024_ GCD YQCM2H=A:8SF&CVQWY6NH2HL,UZ EN2JMFL/ 04025_ Acquired 4 matter. 04027_ Acquired 36 matter. 04033_ Acquired 2 matter. 04099_ #PTNVUQ9M6ER4YI,<|NZ, 5MP%A4#NMCU>2 04110_ WR-QFD(R) destroyed. 04115_ Acquired 4 matter. 04118_ Acquired 29 matter. 04123_ Dropped Sensor Array. 04124_ Acquired Scrap Shield. 04140_ QG-Q4E(R) creaks and sparks as it begins to move. 04140_ LB-VZ2(R) creaks and sparks as it begins to move. 04144_ LB-VZ2(R) knocked back. 04147_ QG-Q4E(R) knocked back. Map ----- +----------------------------------------------------+ | ??????????????????????????????????????????? | | ??????????????????????????????????????????? | | ??????????????????????????????????????????? | | ??????????????????????????????????????????? | | ??????????????????????????????????????????? | | ??????????????????????????????????????????? | | ??????????????????????????????????????????? | | ??????????????????????????????????????????? | | ??????????????????????????????????????????? | | ??????????????????????????????????????????? | | ??????????????????????????????????????????? | | ??????????????????????????????????????????? | | ??????????????????????????????????????????? | | ??????????????????????????????????????????? | | ??????????????????????????????????????????? | | ??????????????????????????????????????????? | | ??????????????????????????????????????????? | | ??????????????????????????????????????????? | | ??????????????????????????????????????????? | | ???????????????????????????##?????????????? | | ????????????####?????????? ??????????????? | | ???????????##&< ??#####? ? ##???????????? | | ???????????# <## # # #???????????? | | ???????????# R # ##??????????? | | ???????????#" ? ??????????? | | ???????????# " #@# #??? ??????????? | | ???????????????# #????? ?????????? | | ???????????????#RR% ##### ????????? | | ???????????????# #???????????? | | ???????????????## % #????????????? | | ????????????????# ## ##????????????? | | ????????????????## ####?????????????????? | | ????????????????## ##??###???????????????? | | ????????????????# #??## ##??????????????? | | ????????????????# #### #??????????????? | | ????????????????## !# #??????????????? | | ????????????????# [ #??????????????? | | ????????????????## #!## #???? #????????? | | ?????????????????####### #??? #????????? | | ???????????????????????# ### #????????? | | ???????????????###????## #????????? | | ??????????????## #??## #????????? | | ??????????????# ### #????????? | | ??????????????# ##????????? | | ??????????????# ##?????????? | | ??????????????# ## ##??????????? | | ??????????????## ### #???????????? | | ???????????????### #??# #??????????? | | ?????????????????## ##??# #?????????? | | ??????????????????# #??? #????????? | +----------------------------------------------------+ Best States ------------- Heat Dissipation 25 Energy Generation 14 Energy Capacity 250 Matter Stores 300 Matter Capacity 300 Sight Range 16 Terrain Scan Density 10 Armor Coverage 150 Evasion (%) 40 Recoil Reduction 2 Item Schematics ----------------- None Robot Schematics ------------------ None Fabricated ------------ Nothing Alien Tech Used ----------------- None Achievements -------------- None Challenges ------------ None Game ------ Seed ScrapoidReinforcedCoupler Manual? 0 Play Time 00:35:17 Cumulative 145.3 hours Start 2024.09.29 @ 23:36:21 End 2024.09.30 @ 00:20:46 Sessions 1 Manual Loads 0 Difficulty Rogue Special Mode None Game No. 78 Rogue 78 Adventurer 0 Explorer 0 Win Type - Total 1 Types 0/0/0/1/0/0/0/0/0 Lore% 53 Gallery% 60 Achievement% 50 Wizard Run 0 Options --------- Layout 0 ASCII 0 Keyboard 0 Movement Numpad Keybinds 1 Fullscreen 2 Font 18/X11 Map View 76x50 Zoom Use 0% Tactical HUD 1 Map Filters NONE Filters NONE Steam 1 RUN: 0a3ce0db-7c6c-4a77-a477-41b5ac170c13